{"text_format":"2","workbook":"xlsx","n_sheets":3,"sheets":["Лист1","Лист2","Лист3"],"not_rendered":{"charts":0,"images":0,"macros":0,"external_links":0,"defined_names":1,"comments":0,"pivot_tables":0},"unopened":[],"bounds":{"document_bytes":16777216,"sheet_cells":100000,"run_cost":"one","rows_first":2000,"rows_last":500,"rows_between":2000,"halvings":0,"cell_chars":16384,"cell_head_chars":4096},"cells_cut":0,"cells_raw":0,"read":"whole","date_system":"1900"}

{"sheet":"Лист1","index":0,"n_rows":27,"n_cols":29,"rows_kept":27,"cut":false,"hidden":false,"merged":[[6,8,7,9],[6,10,7,11],[0,0,0,9],[1,0,2,9],[4,0,4,9],[6,0,8,0],[6,1,8,1],[6,6,7,7],[6,2,6,5],[7,2,7,3],[7,4,7,5],[6,26,7,28],[6,25,7,25],[6,12,7,13],[6,15,7,16],[6,17,7,18],[6,14,7,14],[6,23,7,24],[6,19,7,20],[6,21,7,22]]}
["Отчет"]
["  о результатах мониторинга качества финансового менеджмента,                                                                                                                                                                                                                            осуществляемого главными администраторами средств районного бюджета"]
[]
[]
["на 1 октября 2019 года"]
[]
["№","Наименование главного администратора средств районного бюджета","1.6. Сумма внесенных изменений в бюджетную роспись в связи с уточнением ассигнований по решению Земского собрания",null,null,null,"1.7. Сумма внесенных положительных изменений в бюджетную роспись в отчетном периоде в связи с передвижками между кодами бюджетной классификации",null,"2.3. Своевременность принятия бюджетных обязательств",null,"2.4. Качество прогнозирования кассовых расходов",null,"2.5. Уровень подготовки платежных документов",null,"2.6. Качество исполнения расходов","3.2. Полнота зачисления платежей в районный бюджет по главному администратору доходов районного бюджета",null,"3.3.  Отклонение кассового исполнения по доходам от прогноза по главному администратору доходов районного бюджета",null,"4.3.  Коэффициент сложности исполнения бюджетных ассигнований",null,"7.3. Уровень использования субсидий бюджетными и автономными учреждениями, предоставленных на выполнение муниципальных заданий",null,"7.4. Уровень подготовки платежных документов бюджетными и автономными учреждениями",null,"7.5. Качество осуществления расходов бюджетными и автономными учреждениями","И Т О Г О                                                                                                                    по главному администратору средств                                     районного бюджета"]
[null,null,"положительных",null,"отрицательных"]
[null,null,"значение показателя","количество баллов","значение показателя","количество баллов","значение показателя","количество баллов","значение показателя","количество баллов","значение показателя","количество баллов","значение показателя","количество баллов","количество баллов","значение показателя","количество баллов","значение показателя","количество баллов","значение показателя","количество баллов","значение показателя","количество баллов","значение показателя","количество баллов","количество баллов","количество баллов","max возможная сумма баллов","Общий показатель качества финансового менеджмента главного администратра средств районного бюджета (гр.27/гр.28)*100%"]
[1,2,3,4,5,6,7,8,9,10,11,12,13,14,15,16,17,18,19,20,21,22,23,24,25,26,27,28,29]
[null,"1 группа"]
[1,"Администрация района",91.2,8,102,4,98.8,10,48.9,4,88.5,6,99.2,7,7.3,0,5,0.44,10,50.1,3,99.3,10,98.9,7,7.3,{"$f":"SUM(D12+F12+H12+J12+L12+N12+O12+Q12+S12+U12+W12+Y12+Z12)","v":88.6},125,{"$f":"SUM(AA12/AB12)*100","v":70.88}]
[2,"Управление образования",97.5,10,101.2,4,99.7,10,81.2,10,90.7,6,98.3,7,8.6999999999999993,0,5,0,0,887.7,6,90.5,6,97.5,7,7.3,{"$f":"SUM(D13+F13+H13+J13+L13+N13+O13+Q13+S13+U13+W13+Y13+Z13)","v":87},125,{"$f":"SUM(AA13/AB13)*100","v":69.599999999999994}]
[3,"Отдел культуры",100,10,100,4,99.9,10,75.7,7,96.4,10,99.8,7,10,0,5,0,0,918,10,90.8,6,99.4,7,7.3,93.3,125,74.64]
[null,"2 группа"]
[1,"Финансовое управление",80,4,101.5,4,100,10,46.1,4,98.8,10,100,10,8.6999999999999993,0,5,0,0,76.3,6,{"$nulls":5},{"$f":"SUM(D16+F16+H16+J16+L16+N16+O16+Q16+S16+U16)","v":61.7},95,{"$f":"SUM(AA16/AB16)*100","v":64.94736842105263}]
[2,"Управление сельского хозяйства",100,10,100,4,91.8,8,89.3,10,98.5,10,99.5,7,8.6999999999999993,0,5,0,0,79.599999999999994,6,{"$nulls":5},{"$f":"SUM(D17+F17+H17+J17+L17+N17+O17+Q17+S17+U17)","v":68.7},95,{"$f":"SUM(AA17/AB17)*100","v":72.315789473684205}]
[]
[null,null,null,10,null,10,null,10,null,10,null,10,null,10,10,null,5,null,10,null,10,null,10,null,10,10,null,{"$f":"SUM(D19:Z19)","v":125}]
[null,null,null,{"$f":"SUM(D12:D17)","v":42},null,{"$f":"SUM(F12:F17)","v":20},null,{"$f":"SUM(H12:H17)","v":48},{"$f":"SUM(I12:I17)","v":341.2},null,null,{"$f":"SUM(L12:L17)","v":42},null,{"$f":"SUM(N12:N17)","v":38},{"$nulls":13},{"$f":"SUM(D19:U19)","v":95}]
[{"$nulls":7},{"$f":"(D20+F20+H20)/15","v":7.333333333333333},{"$f":"I20/5","v":68.239999999999995},null,null,{"$f":"L20/5","v":8.4},null,{"$f":"N20/5","v":7.6},{"$nulls":7},{"$f":"SUM(V12:V14)","v":280.60000000000002},{"$nulls":6},{"$f":"SUM(AC12:AC17)","v":352.38315789473683}]
[{"$nulls":14},{"$f":"J12+L12+N12+O12","v":24.3},{"$nulls":6},{"$f":"V21/3","v":93.533333333333346},{"$nulls":6},{"$f":"AC21/5","v":70.476631578947362}]
[{"$nulls":14},{"$f":"J13+L13+N13+O13","v":31.7}]
[{"$nulls":14},{"$f":"J14+L14+N14+O14","v":34}]
[]
[{"$nulls":14},{"$f":"J16+L16+N16+O16","v":32.700000000000003}]
[{"$nulls":14},{"$f":"J17+L17+N17+O17","v":35.700000000000003}]

{"sheet":"Лист2","index":1,"n_rows":0,"n_cols":0,"rows_kept":0,"cut":false,"hidden":false,"merged":[]}

{"sheet":"Лист3","index":2,"n_rows":0,"n_cols":0,"rows_kept":0,"cut":false,"hidden":false,"merged":[]}